[Event "Titled Tuesday Blitz January 10 Late 2023"]
[White "Aung Thant Zin"]
[Black "Lopez Idarraga, Daniel Eduardo"]
[WhiteFideId "13000063"]
[BlackFideId "4405501"]
[WhiteElo "2268"]
[BlackElo "2009"]
[Result "1-0"]
[Round "07"]
[TimeControl "180+2"]
[Date "2023.01.10"]
[WhiteClock "0:00:23"]
[BlackClock "0:00:42"]

1. e4 {[%clk 0:00:00]}  e6 {[%clk 0:00:00]} 2. d4 {[%clk 0:02:58]}  d5 {[%clk 0:02:59]} 3. Nc3 {[%clk 0:02:58]}  Nf6 {[%clk 0:02:59]} 4. Bg5 {[%clk 0:02:58]}  Bb4 {[%clk 0:02:58]} 5. e5 {[%clk 0:02:58]}  h6 {[%clk 0:02:58]} 6. Bd2 {[%clk 0:02:58]}  Bxc3 {[%clk 0:02:58]} 7. bxc3 {[%clk 0:02:57]}  Ne4 {[%clk 0:02:56]} 8. Bd3 {[%clk 0:02:58]}  Nxd2 {[%clk 0:02:57]} 9. Qxd2 {[%clk 0:02:58]}  c5 {[%clk 0:02:55]} 10. dxc5 {[%clk 0:02:58]}  Nd7 {[%clk 0:02:56]} 11. Nf3 {[%clk 0:02:58]}  Qc7 {[%clk 0:02:55]} 12. O-O {[%clk 0:02:49]}  Nxe5 {[%clk 0:02:53]} 13. Nxe5 {[%clk 0:02:48]}  Qxe5 {[%clk 0:02:53]} 14. Bb5+ {[%clk 0:02:45]}  Bd7 {[%clk 0:02:54]} 15. Bxd7+ {[%clk 0:02:45]}  Kxd7 {[%clk 0:02:54]} 16. Rab1 {[%clk 0:02:45]}  Qc7 {[%clk 0:02:55]} 17. Qd4 {[%clk 0:02:45]}  Ke7 {[%clk 0:02:52]} 18. Rfe1 {[%clk 0:02:39]}  Kf8 {[%clk 0:02:02]} 19. Re3 {[%clk 0:02:24]}  Kg8 {[%clk 0:02:00]} 20. Rg3 {[%clk 0:02:13]}  g6 {[%clk 0:01:55]} 21. h4 {[%clk 0:02:11]}  h5 {[%clk 0:01:53]} 22. c4 {[%clk 0:02:05]}  dxc4 {[%clk 0:01:52]} 23. Qxc4 {[%clk 0:01:44]}  Kh7 {[%clk 0:01:47]} 24. Qe4 {[%clk 0:01:44]}  Rab8 {[%clk 0:01:48]} 25. Rf3 {[%clk 0:01:40]}  Rhd8 {[%clk 0:01:45]} 26. g3 {[%clk 0:01:34]}  Kg8 {[%clk 0:01:42]} 27. Qe3 {[%clk 0:01:25]}  Rd5 {[%clk 0:01:39]} 28. Rb5 {[%clk 0:01:18]}  a6 {[%clk 0:01:36]} 29. Rb4 {[%clk 0:01:13]}  Qxc5 {[%clk 0:01:33]} 30. Qf4 {[%clk 0:00:59]}  Rf8 {[%clk 0:01:33]} 31. Rxb7 {[%clk 0:00:52]}  Rf5 {[%clk 0:01:23]} 32. Qe4 {[%clk 0:00:46]}  Rxf3 {[%clk 0:01:21]} 33. Qxf3 {[%clk 0:00:46]}  Qxc2 {[%clk 0:01:21]} 34. a3 {[%clk 0:00:46]}  a5 {[%clk 0:01:21]} 35. Kg2 {[%clk 0:00:44]}  a4 {[%clk 0:01:20]} 36. Rb4 {[%clk 0:00:43]}  Rd8 {[%clk 0:01:21]} 37. Rb7 {[%clk 0:00:43]}  Rf8 {[%clk 0:01:16]} 38. Rb4 {[%clk 0:00:40]}  e5 {[%clk 0:01:09]} 39. Qd5 {[%clk 0:00:40]}  Re8 {[%clk 0:01:02]} 40. Qb5 {[%clk 0:00:30]}  Re6 {[%clk 0:00:59]} 41. Qxa4 {[%clk 0:00:27]}  Qf5 {[%clk 0:00:55]} 42. Rb8+ {[%clk 0:00:26]}  Kg7 {[%clk 0:00:48]} 43. Qb4 {[%clk 0:00:23]}  e4 {[%clk 0:00:48]} 44. Qf8+ {[%clk 0:00:23]}  Kf6 {[%clk 0:00:41]} 45. Qh8+ {[%clk 0:00:22]}  Ke7 {[%clk 0:00:42]} 46. Qd8# {[%clk 0:00:23]} 1-0


[Site "https://www.chess.com"]

[Event "Titled Tuesday Blitz January 10 Late 2023"]
[White "Abdyzhaparov, Aidar"]
[Black "Kovacevic, Radmila"]
[WhiteFideId "13800361"]
[BlackFideId "933171"]
[WhiteElo "1978"]
[BlackElo "2106"]
[Result "1-0"]
[Round "07"]
[TimeControl "180+2"]
[Date "2023.01.10"]
[WhiteClock "0:01:59"]
[BlackClock "0:01:17"]

1. Nf3 {[%clk 0:00:00]}  d5 {[%clk 0:00:00]} 2. c4 {[%clk 0:02:53]}  c6 {[%clk 0:02:59]} 3. d4 {[%clk 0:02:53]}  Bg4 {[%clk 0:02:53]} 4. Ne5 {[%clk 0:02:53]}  Be6 {[%clk 0:02:48]} 5. Qb3 {[%clk 0:02:49]}  b6 {[%clk 0:02:45]} 6. Nc3 {[%clk 0:02:47]}  dxc4 {[%clk 0:02:36]} 7. Qd1 {[%clk 0:02:45]}  f6 {[%clk 0:02:33]} 8. Nf3 {[%clk 0:02:36]}  Bg4 {[%clk 0:02:28]} 9. e4 {[%clk 0:02:34]}  Bxf3 {[%clk 0:02:15]} 10. Qxf3 {[%clk 0:02:33]}  Qxd4 {[%clk 0:02:11]} 11. Be3 {[%clk 0:02:33]}  Qd7 {[%clk 0:02:10]} 12. Bxc4 {[%clk 0:02:30]}  e5 {[%clk 0:01:56]} 13. Rd1 {[%clk 0:02:24]}  Qc7 {[%clk 0:01:53]} 14. Be6 {[%clk 0:02:20]}  Bb4 {[%clk 0:01:45]} 15. O-O {[%clk 0:02:15]}  Bxc3 {[%clk 0:01:33]} 16. bxc3 {[%clk 0:02:08]}  Qe7 {[%clk 0:01:33]} 17. Qh3 {[%clk 0:02:07]}  c5 {[%clk 0:01:17]} 18. Bd5 {[%clk 0:01:59]} 1-0


[Site "https://www.chess.com"]

[Event "Titled Tuesday Blitz January 10 Late 2023"]
[White "Harish, Neeraj"]
[Black "Rose, Felix"]
[WhiteFideId "30958130"]
[BlackFideId "5105722"]
[WhiteElo "2232"]
[BlackElo "2091"]
[Result "0-1"]
[Round "07"]
[TimeControl "180+2"]
[Date "2023.01.10"]
[WhiteClock "0:00:07"]
[BlackClock "0:00:05"]

1. e4 {[%clk 0:00:00]}  c5 {[%clk 0:00:00]} 2. Nf3 {[%clk 0:02:56]}  e6 {[%clk 0:02:59]} 3. d4 {[%clk 0:02:56]}  cxd4 {[%clk 0:02:58]} 4. Nxd4 {[%clk 0:02:56]}  a6 {[%clk 0:02:58]} 5. Bd3 {[%clk 0:02:57]}  Bc5 {[%clk 0:02:59]} 6. Nb3 {[%clk 0:02:56]}  Ba7 {[%clk 0:02:58]} 7. Nc3 {[%clk 0:02:55]}  Nc6 {[%clk 0:02:59]} 8. Qe2 {[%clk 0:02:54]}  b5 {[%clk 0:02:59]} 9. Be3 {[%clk 0:02:53]}  Bb7 {[%clk 0:02:47]} 10. O-O-O {[%clk 0:02:49]}  Bxe3+ {[%clk 0:02:47]} 11. Qxe3 {[%clk 0:02:36]}  Nge7 {[%clk 0:02:41]} 12. h4 {[%clk 0:02:35]}  Qc7 {[%clk 0:02:38]} 13. Bxb5 {[%clk 0:02:28]}  axb5 {[%clk 0:02:32]} 14. Nxb5 {[%clk 0:01:49]}  Qb8 {[%clk 0:02:23]} 15. Nd6+ {[%clk 0:01:50]}  Kf8 {[%clk 0:02:24]} 16. Nc5 {[%clk 0:01:50]}  Bc8 {[%clk 0:02:19]} 17. Nxc8 {[%clk 0:01:48]}  Qxc8 {[%clk 0:02:08]} 18. Nxd7+ {[%clk 0:01:30]}  Kg8 {[%clk 0:02:04]} 19. Kb1 {[%clk 0:01:29]}  Nb4 {[%clk 0:02:02]} 20. Qb3 {[%clk 0:01:26]}  Rxa2 {[%clk 0:01:52]} 21. Nb6 {[%clk 0:00:56]}  Qe8 {[%clk 0:00:39]} 22. Qxb4 {[%clk 0:00:38]}  Ra6 {[%clk 0:00:04]} 23. Rd7 {[%clk 0:00:35]}  h5 {[%clk 0:00:03]} 24. Rxe7 {[%clk 0:00:26]}  Qb8 {[%clk 0:00:03]} 25. Nd5 {[%clk 0:00:24]}  Qa8 {[%clk 0:00:03]} 26. c3 {[%clk 0:00:17]}  exd5 {[%clk 0:00:03]} 27. Rd1 {[%clk 0:00:10]}  Ra1+ {[%clk 0:00:03]} 28. Kc2 {[%clk 0:00:08]}  Rxd1 {[%clk 0:00:03]} 29. Kxd1 {[%clk 0:00:09]}  dxe4 {[%clk 0:00:03]} 30. Qc4 {[%clk 0:00:10]}  Qd8+ {[%clk 0:00:04]} 31. Kc2 {[%clk 0:00:10]}  Qxe7 {[%clk 0:00:04]} 32. Qc8+ {[%clk 0:00:06]}  Kh7 {[%clk 0:00:04]} 33. Qf5+ {[%clk 0:00:07]}  g6 {[%clk 0:00:05]} 0-1


[Site "https://www.chess.com"]

[Event "Titled Tuesday Blitz January 10 Late 2023"]
[White "Adel, Sara"]
[Black "Guimaraes, Wagner Peixoto"]
[WhiteFideId "10616764"]
[BlackFideId "2100940"]
[WhiteElo "1739"]
[BlackElo "2194"]
[Result "0-1"]
[Round "07"]
[TimeControl "180+2"]
[Date "2023.01.10"]
[WhiteClock "0:01:37"]
[BlackClock "0:01:14"]

1. e4 {[%clk 0:00:00]}  c5 {[%clk 0:00:00]} 2. Nc3 {[%clk 0:02:59]}  d6 {[%clk 0:02:59]} 3. f4 {[%clk 0:02:58]}  g6 {[%clk 0:02:59]} 4. Nf3 {[%clk 0:02:59]}  e6 {[%clk 0:03:00]} 5. Bc4 {[%clk 0:02:59]}  Bg7 {[%clk 0:03:00]} 6. O-O {[%clk 0:02:59]}  Ne7 {[%clk 0:03:00]} 7. Qe1 {[%clk 0:02:58]}  Nbc6 {[%clk 0:03:00]} 8. d3 {[%clk 0:02:58]}  a6 {[%clk 0:03:00]} 9. a4 {[%clk 0:02:59]}  Nb4 {[%clk 0:03:00]} 10. Qf2 {[%clk 0:02:59]}  Bd7 {[%clk 0:03:00]} 11. Ng5 {[%clk 0:02:56]}  Bd4 {[%clk 0:02:55]} 12. Be3 {[%clk 0:02:56]}  Bxe3 {[%clk 0:02:45]} 13. Qxe3 {[%clk 0:02:56]}  Nxc2 {[%clk 0:02:45]} 14. Qh3 {[%clk 0:02:57]}  Nxa1 {[%clk 0:02:46]} 15. f5 {[%clk 0:02:51]}  Nxf5 {[%clk 0:02:43]} 16. Nxh7 {[%clk 0:02:52]}  Qh4 {[%clk 0:02:31]} 17. exf5 {[%clk 0:02:31]}  Qxh3 {[%clk 0:02:17]} 18. Nf6+ {[%clk 0:02:17]}  Ke7 {[%clk 0:02:15]} 19. gxh3 {[%clk 0:02:09]}  gxf5 {[%clk 0:02:15]} 20. Nxd7 {[%clk 0:02:07]}  Rag8+ {[%clk 0:01:54]} 21. Kf2 {[%clk 0:02:01]}  Nc2 {[%clk 0:01:50]} 22. Nb6 {[%clk 0:02:01]}  Rxh3 {[%clk 0:01:34]} 23. Rh1 {[%clk 0:01:57]}  Nd4 {[%clk 0:01:34]} 24. Ne2 {[%clk 0:01:53]}  Nxe2 {[%clk 0:01:28]} 25. Kxe2 {[%clk 0:01:39]}  Rg2+ {[%clk 0:01:22]} 26. Kd1 {[%clk 0:01:39]}  Rxb2 {[%clk 0:01:15]} 27. Re1 {[%clk 0:01:37]}  Rxb6 {[%clk 0:01:14]} 0-1


[Site "https://www.chess.com"]

[Event "Titled Tuesday Blitz January 10 Late 2023"]
[White "ritanovikova"]
[Black "Weisz, Bryan"]
[BlackFideId "30934133"]
[WhiteElo "2115"]
[BlackElo "1973"]
[Result "0-1"]
[Round "07"]
[TimeControl "180+2"]
[Date "2023.01.10"]
[WhiteClock "0:00:13"]
[BlackClock "0:00:25"]

1. d4 {[%clk 0:00:00]}  f6 {[%clk 0:00:00]} 2. Bf4 {[%clk 0:02:40]}  Kf7 {[%clk 0:02:57]} 3. e4 {[%clk 0:02:40]}  Ke6 {[%clk 0:02:58]} 4. Bc4+ {[%clk 0:02:39]}  d5 {[%clk 0:02:58]} 5. Bxd5+ {[%clk 0:02:36]}  Kd7 {[%clk 0:02:56]} 6. Nc3 {[%clk 0:02:32]}  Ke8 {[%clk 0:02:55]} 7. Nf3 {[%clk 0:02:20]}  e6 {[%clk 0:02:46]} 8. Bc4 {[%clk 0:02:17]}  Nc6 {[%clk 0:02:41]} 9. d5 {[%clk 0:02:14]}  e5 {[%clk 0:02:32]} 10. Be3 {[%clk 0:02:08]}  Nb8 {[%clk 0:02:23]} 11. Nxe5 {[%clk 0:01:50]}  Ne7 {[%clk 0:02:10]} 12. Nf3 {[%clk 0:01:39]}  Ng6 {[%clk 0:01:53]} 13. Qd2 {[%clk 0:01:11]}  Bd6 {[%clk 0:01:52]} 14. h4 {[%clk 0:01:10]}  h5 {[%clk 0:01:48]} 15. Bd3 {[%clk 0:01:04]}  Bg4 {[%clk 0:01:46]} 16. Nd4 {[%clk 0:01:00]}  Ne5 {[%clk 0:01:44]} 17. f3 {[%clk 0:00:58]}  Bd7 {[%clk 0:01:40]} 18. Bf2 {[%clk 0:00:55]}  Na6 {[%clk 0:01:38]} 19. Bxa6 {[%clk 0:00:51]}  bxa6 {[%clk 0:01:35]} 20. Ne6 {[%clk 0:00:50]}  Bxe6 {[%clk 0:01:35]} 21. dxe6 {[%clk 0:00:49]}  Qe7 {[%clk 0:01:35]} 22. Qd5 {[%clk 0:00:49]}  c6 {[%clk 0:01:33]} 23. Qb3 {[%clk 0:00:47]}  Rb8 {[%clk 0:01:30]} 24. Qa4 {[%clk 0:00:45]}  Qxe6 {[%clk 0:01:31]} 25. f4 {[%clk 0:00:39]}  Rb4 {[%clk 0:01:06]} 26. Qxa6 {[%clk 0:00:31]}  Ng4 {[%clk 0:01:04]} 27. Qxc6+ {[%clk 0:00:26]}  Kf7 {[%clk 0:00:43]} 28. O-O {[%clk 0:00:25]}  Bxf4 {[%clk 0:00:37]} 29. Bc5 {[%clk 0:00:21]}  Qxc6 {[%clk 0:00:30]} 30. Bxb4 {[%clk 0:00:18]}  Qb6+ {[%clk 0:00:28]} 31. Kh1 {[%clk 0:00:18]}  Nf2+ {[%clk 0:00:28]} 32. Rxf2 {[%clk 0:00:16]}  Qxf2 {[%clk 0:00:26]} 33. Nd5 {[%clk 0:00:15]}  Qxh4+ {[%clk 0:00:27]} 34. Kg1 {[%clk 0:00:13]}  Qh2+ {[%clk 0:00:26]} 35. Kf1 {[%clk 0:00:12]}  Qh1+ {[%clk 0:00:27]} 36. Ke2 {[%clk 0:00:13]}  Qxa1 {[%clk 0:00:27]} 37. Bc3 {[%clk 0:00:13]}  Qxa2 {[%clk 0:00:26]} 38. Nxf4 {[%clk 0:00:13]}  Re8 {[%clk 0:00:26]} 39. Kf3 {[%clk 0:00:13]}  Qc4 {[%clk 0:00:25]} 0-1


[Site "https://www.chess.com"]

[Event "Titled Tuesday Blitz January 10 Late 2023"]
[White "Vaglio Munoz, Jaime"]
[Black "Kho, Darrell"]
[WhiteFideId "6500145"]
[BlackFideId "1019317"]
[WhiteElo "2174"]
[BlackElo "2075"]
[Result "1-0"]
[Round "07"]
[TimeControl "180+2"]
[Date "2023.01.10"]
[WhiteClock "0:00:43"]
[BlackClock "0:00:02"]

1. d4 {[%clk 0:00:00]}  d5 {[%clk 0:00:00]} 2. c4 {[%clk 0:03:00]}  e6 {[%clk 0:02:58]} 3. Nc3 {[%clk 0:02:59]}  a6 {[%clk 0:02:57]} 4. e4 {[%clk 0:02:58]}  dxe4 {[%clk 0:02:56]} 5. Nxe4 {[%clk 0:02:55]}  Bb4+ {[%clk 0:02:53]} 6. Nc3 {[%clk 0:02:56]}  c5 {[%clk 0:02:52]} 7. Be3 {[%clk 0:02:54]}  Nc6 {[%clk 0:02:37]} 8. dxc5 {[%clk 0:02:30]}  Qxd1+ {[%clk 0:02:08]} 9. Rxd1 {[%clk 0:02:28]}  Bxc3+ {[%clk 0:02:02]} 10. bxc3 {[%clk 0:02:27]}  e5 {[%clk 0:02:03]} 11. Nf3 {[%clk 0:02:26]}  Nf6 {[%clk 0:02:01]} 12. h3 {[%clk 0:02:20]}  h6 {[%clk 0:01:55]} 13. g4 {[%clk 0:02:17]}  Ne4 {[%clk 0:01:54]} 14. Rc1 {[%clk 0:02:14]}  Be6 {[%clk 0:01:42]} 15. Bd3 {[%clk 0:02:07]}  Nf6 {[%clk 0:01:37]} 16. Be2 {[%clk 0:02:03]}  Nd7 {[%clk 0:01:36]} 17. Nd2 {[%clk 0:02:01]}  Na5 {[%clk 0:01:16]} 18. f3 {[%clk 0:01:56]}  Ke7 {[%clk 0:00:56]} 19. Rb1 {[%clk 0:01:49]}  Rab8 {[%clk 0:00:48]} 20. Kf2 {[%clk 0:01:46]}  Rhc8 {[%clk 0:00:46]} 21. h4 {[%clk 0:01:45]}  Nxc5 {[%clk 0:00:45]} 22. g5 {[%clk 0:01:41]}  h5 {[%clk 0:00:44]} 23. g6 {[%clk 0:01:41]}  Na4 {[%clk 0:00:35]} 24. Rhc1 {[%clk 0:01:15]}  Nxc4 {[%clk 0:00:34]} 25. gxf7 {[%clk 0:01:08]}  Nxe3 {[%clk 0:00:25]} 26. Kxe3 {[%clk 0:00:56]}  Nxc3 {[%clk 0:00:22]} 27. Ra1 {[%clk 0:00:56]}  Nxe2 {[%clk 0:00:20]} 28. Kxe2 {[%clk 0:00:52]}  Kxf7 {[%clk 0:00:19]} 29. Ne4 {[%clk 0:00:51]}  Ke7 {[%clk 0:00:18]} 30. Rg1 {[%clk 0:00:51]}  Kf8 {[%clk 0:00:19]} 31. Rg5 {[%clk 0:00:47]}  Rc2+ {[%clk 0:00:08]} 32. Ke3 {[%clk 0:00:46]}  Rd8 {[%clk 0:00:06]} 33. Rag1 {[%clk 0:00:46]}  Bc4 {[%clk 0:00:02]} 34. Rxe5 {[%clk 0:00:44]}  Rd3+ {[%clk 0:00:02]} 35. Kf4 {[%clk 0:00:43]} 1-0


[Site "https://www.chess.com"]

[Event "Titled Tuesday Blitz January 10 Late 2023"]
[White "ajedrez-facil"]
[Black "De Souza, Cristiano Gomes"]
[BlackFideId "2151758"]
[WhiteElo "2127"]
[BlackElo "2018"]
[Result "1/2-1/2"]
[Round "07"]
[TimeControl "180+2"]
[Date "2023.01.10"]
[WhiteClock "0:00:25"]
[BlackClock "0:00:49"]

1. e4 {[%clk 0:00:00]}  c5 {[%clk 0:00:00]} 2. Nf3 {[%clk 0:03:00]}  d6 {[%clk 0:02:44]} 3. d4 {[%clk 0:03:00]}  cxd4 {[%clk 0:02:36]} 4. Qxd4 {[%clk 0:03:00]}  Nc6 {[%clk 0:02:36]} 5. Bb5 {[%clk 0:03:01]}  Qa5+ {[%clk 0:02:36]} 6. Nc3 {[%clk 0:03:00]}  Qxb5 {[%clk 0:02:35]} 7. Nxb5 {[%clk 0:03:00]}  Nxd4 {[%clk 0:02:35]} 8. Nfxd4 {[%clk 0:03:01]}  Kd8 {[%clk 0:02:35]} 9. c4 {[%clk 0:03:02]}  a6 {[%clk 0:02:30]} 10. Nc3 {[%clk 0:03:01]}  g6 {[%clk 0:02:28]} 11. Be3 {[%clk 0:03:01]}  Bg7 {[%clk 0:02:27]} 12. Rd1 {[%clk 0:03:01]}  Nf6 {[%clk 0:02:27]} 13. f3 {[%clk 0:03:00]}  Bd7 {[%clk 0:02:27]} 14. Kf2 {[%clk 0:03:00]}  Rc8 {[%clk 0:02:26]} 15. b3 {[%clk 0:02:59]}  e6 {[%clk 0:02:26]} 16. Nde2 {[%clk 0:02:58]}  Ke7 {[%clk 0:02:23]} 17. Rd2 {[%clk 0:02:54]}  Bc6 {[%clk 0:02:21]} 18. Rhd1 {[%clk 0:02:54]}  Rhd8 {[%clk 0:02:21]} 19. g4 {[%clk 0:02:53]}  Ne8 {[%clk 0:02:20]} 20. Bg5+ {[%clk 0:02:50]}  Bf6 {[%clk 0:02:13]} 21. h4 {[%clk 0:02:43]}  Rd7 {[%clk 0:02:12]} 22. Nd4 {[%clk 0:02:41]}  Rcd8 {[%clk 0:02:01]} 23. Ke3 {[%clk 0:02:36]}  Nc7 {[%clk 0:01:55]} 24. f4 {[%clk 0:02:25]}  Bxg5 {[%clk 0:01:43]} 25. hxg5 {[%clk 0:02:17]}  d5 {[%clk 0:01:42]} 26. Nxc6+ {[%clk 0:02:18]}  bxc6 {[%clk 0:01:42]} 27. e5 {[%clk 0:02:11]}  c5 {[%clk 0:01:42]} 28. Kf3 {[%clk 0:01:55]}  dxc4 {[%clk 0:01:36]} 29. Rxd7+ {[%clk 0:01:46]}  Rxd7 {[%clk 0:01:21]} 30. Rxd7+ {[%clk 0:01:47]}  Kxd7 {[%clk 0:01:21]} 31. bxc4 {[%clk 0:01:47]}  Na8 {[%clk 0:01:21]} 32. Ne4 {[%clk 0:01:48]}  Kc6 {[%clk 0:01:21]} 33. Nd6 {[%clk 0:01:46]}  Nb6 {[%clk 0:01:19]} 34. Ke4 {[%clk 0:01:40]}  Kd7 {[%clk 0:01:20]} 35. Kd3 {[%clk 0:01:35]}  Ke7 {[%clk 0:01:13]} 36. Ne4 {[%clk 0:01:31]}  Nd7 {[%clk 0:01:13]} 37. Nf6 {[%clk 0:01:30]}  Nxf6 {[%clk 0:01:13]} 38. gxf6+ {[%clk 0:01:24]}  Kd7 {[%clk 0:01:12]} 39. g5 {[%clk 0:01:25]}  Kc6 {[%clk 0:01:11]} 40. Kc3 {[%clk 0:01:24]}  Kb6 {[%clk 0:01:12]} 41. Kb3 {[%clk 0:01:23]}  Ka5 {[%clk 0:01:08]} 42. Ka3 {[%clk 0:01:23]}  Kb6 {[%clk 0:01:01]} 43. Ka4 {[%clk 0:01:23]}  a5 {[%clk 0:01:00]} 44. Kb3 {[%clk 0:01:24]}  Ka6 {[%clk 0:00:59]} 45. Kc3 {[%clk 0:01:19]}  Kb6 {[%clk 0:01:00]} 46. Kd3 {[%clk 0:01:16]}  Kc6 {[%clk 0:01:00]} 47. Ke4 {[%clk 0:01:14]}  Kb6 {[%clk 0:00:59]} 48. Ke3 {[%clk 0:01:11]}  Kc6 {[%clk 0:00:57]} 49. a3 {[%clk 0:01:06]}  a4 {[%clk 0:00:56]} 50. Kf3 {[%clk 0:01:06]}  Kd7 {[%clk 0:00:51]} 51. Kg4 {[%clk 0:01:04]}  Kc6 {[%clk 0:00:51]} 52. Kh4 {[%clk 0:01:05]}  Kd7 {[%clk 0:00:50]} 53. Kh3 {[%clk 0:01:05]}  Kc6 {[%clk 0:00:50]} 54. Kg3 {[%clk 0:00:53]}  Kb6 {[%clk 0:00:50]} 55. Kh4 {[%clk 0:00:43]}  Kc6 {[%clk 0:00:50]} 56. Kg3 {[%clk 0:00:25]}  Kd7 {[%clk 0:00:50]} 57. Kf3 {[%clk 0:00:22]}  Kc6 {[%clk 0:00:49]} 58. Kg4 {[%clk 0:00:23]}  Kd7 {[%clk 0:00:49]} 59. Kh4 {[%clk 0:00:23]}  Kc6 {[%clk 0:00:49]} 60. Kg4 {[%clk 0:00:24]}  Kd7 {[%clk 0:00:49]} 61. Kh4 {[%clk 0:00:25]}  Kc6 {[%clk 0:00:49]} 1/2-1/2


[Site "https://www.chess.com"]

[Event "Titled Tuesday Blitz January 10 Late 2023"]
[White "Dias, Joao Batista"]
[Black "Papp, Petra"]
[WhiteFideId "2108240"]
[BlackFideId "739049"]
[WhiteElo "1796"]
[BlackElo "2343"]
[Result "0-1"]
[Round "07"]
[TimeControl "180+2"]
[Date "2023.01.10"]
[WhiteClock "0:02:20"]
[BlackClock "0:01:14"]

1. e4 {[%clk 0:00:00]}  c5 {[%clk 0:00:00]} 2. Nf3 {[%clk 0:03:00]}  d6 {[%clk 0:02:59]} 3. d4 {[%clk 0:03:00]}  cxd4 {[%clk 0:02:59]} 4. Nxd4 {[%clk 0:03:01]}  Nf6 {[%clk 0:03:00]} 5. Nc3 {[%clk 0:03:02]}  a6 {[%clk 0:03:00]} 6. Be3 {[%clk 0:03:01]}  e5 {[%clk 0:03:01]} 7. Nb3 {[%clk 0:03:01]}  Be7 {[%clk 0:02:56]} 8. Be2 {[%clk 0:03:00]}  O-O {[%clk 0:02:55]} 9. g4 {[%clk 0:03:00]}  b5 {[%clk 0:02:53]} 10. g5 {[%clk 0:03:00]}  Nfd7 {[%clk 0:02:42]} 11. h4 {[%clk 0:02:59]}  Bb7 {[%clk 0:02:24]} 12. f3 {[%clk 0:02:59]}  Nb6 {[%clk 0:02:18]} 13. Qd2 {[%clk 0:02:58]}  b4 {[%clk 0:02:04]} 14. Bxb6 {[%clk 0:02:54]}  bxc3 {[%clk 0:02:01]} 15. Qxc3 {[%clk 0:02:51]}  Qxb6 {[%clk 0:01:56]} 16. O-O-O {[%clk 0:02:45]}  Nc6 {[%clk 0:01:56]} 17. Bc4 {[%clk 0:02:44]}  a5 {[%clk 0:01:47]} 18. Bd5 {[%clk 0:02:35]}  a4 {[%clk 0:01:42]} 19. Nd2 {[%clk 0:02:34]}  Rfc8 {[%clk 0:01:40]} 20. a3 {[%clk 0:02:32]}  Nd4 {[%clk 0:01:36]} 21. Nc4 {[%clk 0:02:32]}  Bxd5 {[%clk 0:01:34]} 22. exd5 {[%clk 0:02:24]}  Qb5 {[%clk 0:01:24]} 23. b3 {[%clk 0:02:23]}  axb3 {[%clk 0:01:17]} 24. cxb3 {[%clk 0:02:20]}  Nxb3+ {[%clk 0:01:14]} 0-1


[Site "https://www.chess.com"]

[Event "Titled Tuesday Blitz January 10 Late 2023"]
[White "Zakhartsov, Vladimir"]
[Black "Andreikin, Dmitry"]
[WhiteFideId "4145097"]
[BlackFideId "4158814"]
[WhiteElo "2552"]
[BlackElo "2729"]
[Result "0-1"]
[Round "08"]
[TimeControl "180+2"]
[Date "2023.01.10"]
[WhiteClock "0:00:13"]
[BlackClock "0:00:49"]

1. c4 {[%clk 0:00:00]}  e6 {[%clk 0:00:00]} 2. d4 {[%clk 0:02:32]}  d5 {[%clk 0:02:59]} 3. Nf3 {[%clk 0:02:31]}  Nf6 {[%clk 0:03:00]} 4. Nc3 {[%clk 0:02:31]}  a6 {[%clk 0:02:59]} 5. cxd5 {[%clk 0:02:31]}  exd5 {[%clk 0:03:00]} 6. Bg5 {[%clk 0:02:28]}  Be6 {[%clk 0:03:00]} 7. e3 {[%clk 0:02:28]}  Nbd7 {[%clk 0:03:00]} 8. Bd3 {[%clk 0:02:29]}  h6 {[%clk 0:03:01]} 9. Bh4 {[%clk 0:02:29]}  Bd6 {[%clk 0:03:01]} 10. Rc1 {[%clk 0:02:28]}  O-O {[%clk 0:03:01]} 11. Bg3 {[%clk 0:02:26]}  Bxg3 {[%clk 0:02:59]} 12. hxg3 {[%clk 0:02:18]}  Rc8 {[%clk 0:02:59]} 13. Ne2 {[%clk 0:02:18]}  c5 {[%clk 0:02:58]} 14. dxc5 {[%clk 0:02:14]}  Qa5+ {[%clk 0:02:58]} 15. Qd2 {[%clk 0:02:11]}  Qxd2+ {[%clk 0:02:53]} 16. Nxd2 {[%clk 0:02:11]}  Nxc5 {[%clk 0:02:46]} 17. Bb1 {[%clk 0:01:52]}  Nce4 {[%clk 0:02:47]} 18. Rxc8 {[%clk 0:01:50]}  Rxc8 {[%clk 0:02:30]} 19. Nxe4 {[%clk 0:01:36]}  dxe4 {[%clk 0:02:29]} 20. Kd2 {[%clk 0:01:36]}  Ng4 {[%clk 0:02:25]} 21. f3 {[%clk 0:01:28]}  exf3 {[%clk 0:02:04]} 22. gxf3 {[%clk 0:01:17]}  Ne5 {[%clk 0:01:56]} 23. Nd4 {[%clk 0:01:17]}  Nc4+ {[%clk 0:01:57]} 24. Ke2 {[%clk 0:01:05]}  Nxb2 {[%clk 0:01:55]} 25. Nxe6 {[%clk 0:01:05]}  fxe6 {[%clk 0:01:54]} 26. Be4 {[%clk 0:01:04]}  b5 {[%clk 0:01:55]} 27. f4 {[%clk 0:01:05]}  Na4 {[%clk 0:01:49]} 28. Kf3 {[%clk 0:00:51]}  a5 {[%clk 0:01:43]} 29. Rd1 {[%clk 0:00:47]}  Nc3 {[%clk 0:01:42]} 30. Rd7 {[%clk 0:00:26]}  Nxa2 {[%clk 0:01:23]} 31. Bg6 {[%clk 0:00:26]}  Nc3 {[%clk 0:01:23]} 32. Bf7+ {[%clk 0:00:25]}  Kh8 {[%clk 0:01:13]} 33. Bxe6 {[%clk 0:00:22]}  Rb8 {[%clk 0:01:07]} 34. f5 {[%clk 0:00:21]}  b4 {[%clk 0:00:56]} 35. f6 {[%clk 0:00:19]}  gxf6 {[%clk 0:00:56]} 36. Kg4 {[%clk 0:00:14]}  b3 {[%clk 0:00:55]} 37. Kh5 {[%clk 0:00:14]}  b2 {[%clk 0:00:49]} 38. Kxh6 {[%clk 0:00:13]}  b1=Q {[%clk 0:00:49]} 0-1


[Site "https://www.chess.com"]